Publisher Label,Publisher URI,"Payment Date","Organisational Unit","Beneficiary Name","Purpose","Amount (£)","Irrecoverable VAT Amount (£)","Merchant Category Code"
"Wolverhampton City Council","http://opendatacommunities.org/id/metropolitan-district-council/wolverhampton","03/06/2017","Governance","ADARE LTD","Comms - Postage","5,028.14","0.00","4812"
"Wolverhampton City Council","http://opendatacommunities.org/id/metropolitan-district-council/wolverhampton","03/06/2017","Governance","ADARE LTD","Comms - Postage","2,700.66","0.00","4812"
"Wolverhampton City Council","http://opendatacommunities.org/id/metropolitan-district-council/wolverhampton","21/04/2017","Governance","ADARE LTD","Comms - Postage","2,492.45","0.00","4812"
"Wolverhampton City Council","http://opendatacommunities.org/id/metropolitan-district-council/wolverhampton","21/06/2017","Pension Operations","Barnett Waddingham LLP","Actuarial Fees","3,000.00","0.00","6012"
"Wolverhampton City Council","http://opendatacommunities.org/id/metropolitan-district-council/wolverhampton","21/06/2017","Pension Operations","Barnett Waddingham LLP","Actuarial Fees","16,820.00","0.00","6012"
"Wolverhampton City Council","http://opendatacommunities.org/id/metropolitan-district-council/wolverhampton","21/06/2017","Pension Operations","Barnett Waddingham LLP","Actuarial Fees","2,086.25","0.00","6012"
"Wolverhampton City Council","http://opendatacommunities.org/id/metropolitan-district-council/wolverhampton","13/04/2017","Pension Operations","Barnett Waddingham LLP","Actuarial Fees","12,110.00","0.00","6012"
"Wolverhampton City Council","http://opendatacommunities.org/id/metropolitan-district-council/wolverhampton","13/04/2017","Pension Operations","Barnett Waddingham LLP","Actuarial Fees","760.00","0.00","6012"
"Wolverhampton City Council","http://opendatacommunities.org/id/metropolitan-district-council/wolverhampton","13/04/2017","Pension Operations","Barnett Waddingham LLP","Actuarial Fees","3,222.50","0.00","6012"
"Wolverhampton City Council","http://opendatacommunities.org/id/metropolitan-district-council/wolverhampton","15/05/2017","Pension Operations","Barnett Waddingham LLP","Actuarial Fees","2,260.00","0.00","6012"
"Wolverhampton City Council","http://opendatacommunities.org/id/metropolitan-district-council/wolverhampton","15/05/2017","Pension Operations","Barnett Waddingham LLP","Actuarial Fees","16,926.25","0.00","6012"
"Wolverhampton City Council","http://opendatacommunities.org/id/metropolitan-district-council/wolverhampton","16/05/2017","Pension Operations","Barnett Waddingham LLP","Actuarial Fees","17,322.50","0.00","6012"
"Wolverhampton City Council","http://opendatacommunities.org/id/metropolitan-district-council/wolverhampton","08/05/2017","Pension Operations","BIRMINGHAM CITY COUNCIL","Comms - Postage","8,226.33","0.00","9399"
"Wolverhampton City Council","http://opendatacommunities.org/id/metropolitan-district-council/wolverhampton","21/06/2017","Pension Operations","BIRMINGHAM CITY COUNCIL","Comms - Postage","26,041.18","0.00","9399"
"Wolverhampton City Council","http://opendatacommunities.org/id/metropolitan-district-council/wolverhampton","21/06/2017","Pension Operations","BIRMINGHAM CITY COUNCIL","Comms - Postage","2,678.88","0.00","9399"
"Wolverhampton City Council","http://opendatacommunities.org/id/metropolitan-district-council/wolverhampton","22/06/2017","Pension Operations","Birmingham City University","Conference Expenses","620.00","0.00","8299"
"Wolverhampton City Council","http://opendatacommunities.org/id/metropolitan-district-council/wolverhampton","21/06/2017","Pension Operations","Britannia Consultancy and Training Ltd","Training Expenses","510.00","0.00","8999"
"Wolverhampton City Council","http://opendatacommunities.org/id/metropolitan-district-council/wolverhampton","21/04/2017","Pension Operations","Brook Street (UK) Ltd","Agency Staff","711.40","0.00","7361"
"Wolverhampton City Council","http://opendatacommunities.org/id/metropolitan-district-council/wolverhampton","03/06/2017","Financial Services","Brownejacobson","Services - Professional Fees","3,000.00","0.00","8111"
"Wolverhampton City Council","http://opendatacommunities.org/id/metropolitan-district-council/wolverhampton","05/05/2017","Pension Operations","CIVICA UK LIMITED","Computing - Maint Agreements","6,619.50","0.00","5045"
"Wolverhampton City Council","http://opendatacommunities.org/id/metropolitan-district-council/wolverhampton","02/06/2017","Pension Operations","CIVICA UK LIMITED","Computing - Maint Agreements","4,267.56","0.00","5045"
"Wolverhampton City Council","http://opendatacommunities.org/id/metropolitan-district-council/wolverhampton","02/06/2017","Pension Operations","CIVICA UK LIMITED","Computing - Maint Agreements","1,396.00","0.00","5045"
"Wolverhampton City Council","http://opendatacommunities.org/id/metropolitan-district-council/wolverhampton","06/07/2017","Pension Operations","CIVICA UK LIMITED","Computing - Maint Agreements","10,978.00","0.00","5045"
"Wolverhampton City Council","http://opendatacommunities.org/id/metropolitan-district-council/wolverhampton","27/04/2017","LGPS Central","Corporate Training Partnerships Ltd","Training Expenses","2,900.00","0.00","8999"
"Wolverhampton City Council","http://opendatacommunities.org/id/metropolitan-district-council/wolverhampton","02/06/2017","Governance","COTTAGE BLINDS CONTRACTS LIMITED","R&M - Departmental response (Internal)","510.00","0.00","5714"
"Wolverhampton City Council","http://opendatacommunities.org/id/metropolitan-district-council/wolverhampton","03/05/2017","Pension Operations","Deloitte LLP","Services - Professional Fees","13,080.00","0.00","8999"
"Wolverhampton City Council","http://opendatacommunities.org/id/metropolitan-district-council/wolverhampton","15/05/2017","Governance","Digital ID Limited","Equipment - Purchase","683.28","0.00","5044"
"Wolverhampton City Council","http://opendatacommunities.org/id/metropolitan-district-council/wolverhampton","30/05/2017","Governance","DTZ DTL LTD CLIENT AC:COMMONRECEIPTS","Rent","35,066.26","0.00","7523"
"Wolverhampton City Council","http://opendatacommunities.org/id/metropolitan-district-council/wolverhampton","07/06/2017","Governance","DTZ DTL LTD CLIENT AC:COMMONRECEIPTS","Rent","25,624.32","0.00","7523"
"Wolverhampton City Council","http://opendatacommunities.org/id/metropolitan-district-council/wolverhampton","07/06/2017","Governance","DTZ DTL LTD CLIENT AC:COMMONRECEIPTS","Rent","5,933.38","0.00","7523"
"Wolverhampton City Council","http://opendatacommunities.org/id/metropolitan-district-council/wolverhampton","30/05/2017","Financial Services","Duncan Cunningham Icon Reporting Services","Services - Consultants","1,000.00","0.00","5045"
"Wolverhampton City Council","http://opendatacommunities.org/id/metropolitan-district-council/wolverhampton","14/06/2017","Pension Operations","Equiniti","Services - Professional Fees","1,984.00","0.00","9402"
"Wolverhampton City Council","http://opendatacommunities.org/id/metropolitan-district-council/wolverhampton","15/05/2017","Pension Operations","Equiniti","Services - Professional Fees","3,510.00","0.00","9402"
"Wolverhampton City Council","http://opendatacommunities.org/id/metropolitan-district-council/wolverhampton","07/06/2017","Governance","Eversheds LLP","Services - Professional Fees","5,000.00","0.00","8111"
"Wolverhampton City Council","http://opendatacommunities.org/id/metropolitan-district-council/wolverhampton","07/06/2017","Pension Operations","Eversheds LLP","Services - Professional Fees","972.00","0.00","8111"
"Wolverhampton City Council","http://opendatacommunities.org/id/metropolitan-district-council/wolverhampton","03/06/2017","Pension Operations","Eversheds LLP","Services - Professional Fees","1,500.00","0.00","8111"
"Wolverhampton City Council","http://opendatacommunities.org/id/metropolitan-district-council/wolverhampton","03/06/2017","Pension Operations","Eversheds LLP","Services - Professional Fees","1,000.00","0.00","8111"
"Wolverhampton City Council","http://opendatacommunities.org/id/metropolitan-district-council/wolverhampton","06/06/2017","Pension Operations","Eversheds LLP","Services - Professional Fees","2,817.50","0.00","8111"
"Wolverhampton City Council","http://opendatacommunities.org/id/metropolitan-district-council/wolverhampton","27/04/2017","LGPS Central","Eversheds LLP","Services - Professional Fees","3,302.00","0.00","8111"
"Wolverhampton City Council","http://opendatacommunities.org/id/metropolitan-district-council/wolverhampton","27/04/2017","LGPS Central","Eversheds LLP","Services - Professional Fees","552.50","0.00","8111"
"Wolverhampton City Council","http://opendatacommunities.org/id/metropolitan-district-council/wolverhampton","27/04/2017","LGPS Central","Eversheds LLP","Services - Professional Fees","1,354.00","0.00","8111"
"Wolverhampton City Council","http://opendatacommunities.org/id/metropolitan-district-council/wolverhampton","27/04/2017","LGPS Central","Eversheds LLP","Services - Professional Fees","2,014.00","0.00","8111"
"Wolverhampton City Council","http://opendatacommunities.org/id/metropolitan-district-council/wolverhampton","27/04/2017","LGPS Central","Eversheds LLP","Services - Professional Fees","1,665.50","0.00","8111"
"Wolverhampton City Council","http://opendatacommunities.org/id/metropolitan-district-council/wolverhampton","27/04/2017","LGPS Central","Eversheds LLP","Services - Professional Fees","988.00","0.00","8111"
"Wolverhampton City Council","http://opendatacommunities.org/id/metropolitan-district-council/wolverhampton","27/04/2017","LGPS Central","Eversheds LLP","Services - Professional Fees","1,064.00","0.00","8111"
"Wolverhampton City Council","http://opendatacommunities.org/id/metropolitan-district-council/wolverhampton","27/04/2017","LGPS Central","Eversheds LLP","Services - Professional Fees","1,061.00","0.00","8111"
"Wolverhampton City Council","http://opendatacommunities.org/id/metropolitan-district-council/wolverhampton","28/04/2017","LGPS Central","Eversheds LLP","Services - Professional Fees","516.44","0.00","8111"
"Wolverhampton City Council","http://opendatacommunities.org/id/metropolitan-district-council/wolverhampton","17/05/2017","Pension Operations","Eversheds LLP","Services - Professional Fees","675.00","0.00","8111"
"Wolverhampton City Council","http://opendatacommunities.org/id/metropolitan-district-council/wolverhampton","07/06/2017","Governance","Grand Station","Conference Expenses","2,268.75","0.00","8999"
"Wolverhampton City Council","http://opendatacommunities.org/id/metropolitan-district-council/wolverhampton","07/06/2017","Pension Operations","Grand Station","Conference Expenses","2,501.00","0.00","8999"
"Wolverhampton City Council","http://opendatacommunities.org/id/metropolitan-district-council/wolverhampton","08/05/2017","Financial Services","Grant Thornton UK LLP","Services - Professional Fees","12,154.00","0.00","8931"
"Wolverhampton City Council","http://opendatacommunities.org/id/metropolitan-district-council/wolverhampton","30/06/2017","Governance","Haymarket Media Group Limited","Training Expenses","1,071.00","0.00","8999"
"Wolverhampton City Council","http://opendatacommunities.org/id/metropolitan-district-council/wolverhampton","07/06/2017","Investment - Revenue","HSBC BANK PLC/HSBC SECURITY SERVICES","Services - Professional Fees","2,322.50","0.00","6012"
"Wolverhampton City Council","http://opendatacommunities.org/id/metropolitan-district-council/wolverhampton","03/06/2017","Investment - Revenue","HSBC BANK PLC/HSBC SECURITY SERVICES","Services - Professional Fees","4,406.39","0.00","6012"
"Wolverhampton City Council","http://opendatacommunities.org/id/metropolitan-district-council/wolverhampton","28/06/2017","Investment - Revenue","HSBC BANK PLC/HSBC SECURITY SERVICES","Services - Professional Fees","4,406.39","0.00","6012"
"Wolverhampton City Council","http://opendatacommunities.org/id/metropolitan-district-council/wolverhampton","22/06/2017","Investment - Revenue","HSBC BANK PLC/HSBC SECURITY SERVICES","Services - Professional Fees","4,374.17","0.00","6012"
"Wolverhampton City Council","http://opendatacommunities.org/id/metropolitan-district-council/wolverhampton","22/06/2017","Investment - Revenue","HSBC BANK PLC/HSBC SECURITY SERVICES","Services - Professional Fees","8,748.33","0.00","6012"
"Wolverhampton City Council","http://opendatacommunities.org/id/metropolitan-district-council/wolverhampton","22/06/2017","Investment - Revenue","HSBC BANK PLC/HSBC SECURITY SERVICES","Services - Professional Fees","4,406.39","0.00","6012"
"Wolverhampton City Council","http://opendatacommunities.org/id/metropolitan-district-council/wolverhampton","27/04/2017","Financial Services","HYMANS ROBERTSON LLP","Services - Professional Fees","5,891.00","0.00","6012"
"Wolverhampton City Council","http://opendatacommunities.org/id/metropolitan-district-council/wolverhampton","30/05/2017","Financial Services","HYMANS ROBERTSON LLP","Services - Professional Fees","8,141.00","0.00","6012"
"Wolverhampton City Council","http://opendatacommunities.org/id/metropolitan-district-council/wolverhampton","21/06/2017","Investment - Revenue","HYMANS ROBERTSON LLP","Services - Professional Fees","2,500.00","0.00","6012"
"Wolverhampton City Council","http://opendatacommunities.org/id/metropolitan-district-council/wolverhampton","27/04/2017","Governance","Interserve Constuction Limited","Vehicle Maintenance - Repairs","3,250.00","0.00","7531"
"Wolverhampton City Council","http://opendatacommunities.org/id/metropolitan-district-council/wolverhampton","07/06/2017","LGPS Central","IRG Advisors t/a Odgers Berndtson","Services - Professional Fees","3,641.68","0.00","7392"
"Wolverhampton City Council","http://opendatacommunities.org/id/metropolitan-district-council/wolverhampton","03/06/2017","LGPS Central","IRG Advisors t/a Odgers Berndtson","Services - Professional Fees","11,097.55","0.00","7392"
"Wolverhampton City Council","http://opendatacommunities.org/id/metropolitan-district-council/wolverhampton","02/06/2017","LGPS Central","IRG Advisors t/a Odgers Berndtson","Services - Professional Fees","8,062.50","0.00","7392"
"Wolverhampton City Council","http://opendatacommunities.org/id/metropolitan-district-council/wolverhampton","03/06/2017","LGPS Central","IRG Advisors t/a Odgers Berndtson","Services - Professional Fees","8,205.15","0.00","7392"
"Wolverhampton City Council","http://opendatacommunities.org/id/metropolitan-district-council/wolverhampton","27/04/2017","LGPS Central","IRG Advisors t/a Odgers Berndtson","Services - Consultants","8,062.50","0.00","7392"
"Wolverhampton City Council","http://opendatacommunities.org/id/metropolitan-district-council/wolverhampton","27/04/2017","LGPS Central","IRG Advisors t/a Odgers Berndtson","Services - Professional Fees","5,247.50","0.00","7392"
"Wolverhampton City Council","http://opendatacommunities.org/id/metropolitan-district-council/wolverhampton","27/04/2017","LGPS Central","IRG Advisors t/a Odgers Berndtson","Services - Professional Fees","5,247.50","0.00","7392"
"Wolverhampton City Council","http://opendatacommunities.org/id/metropolitan-district-council/wolverhampton","14/06/2017","Governance","Kaizen Consultants","Stationery","936.00","0.00","2741"
"Wolverhampton City Council","http://opendatacommunities.org/id/metropolitan-district-council/wolverhampton","25/04/2017","Governance","Kaizen Consultants","Stationery","775.54","0.00","2741"
"Wolverhampton City Council","http://opendatacommunities.org/id/metropolitan-district-council/wolverhampton","03/06/2017","Financial Services","Kaplan Financial","Training Expenses","1,329.17","0.00","8299"
"Wolverhampton City Council","http://opendatacommunities.org/id/metropolitan-district-council/wolverhampton","15/05/2017","LGPS Central","KNOWLEDGE ACADEMY","Training Expenses","1,235.00","0.00","8299"
"Wolverhampton City Council","http://opendatacommunities.org/id/metropolitan-district-council/wolverhampton","03/05/2017","Governance","KONICA MINOLTA BUS.SOLUTIONS(UK)LTD.","Printing","4,287.64","0.00","2741"
"Wolverhampton City Council","http://opendatacommunities.org/id/metropolitan-district-council/wolverhampton","02/06/2017","Investments Fund Account","LONDON STOCK EXCHANGE PLC","Services - General Licences","598.36","0.00","6012"
"Wolverhampton City Council","http://opendatacommunities.org/id/metropolitan-district-council/wolverhampton","12/06/2017","Pension Operations","NEOPOST LIMITED","Equipment - Purchase","6,675.00","0.00","5111"
"Wolverhampton City Council","http://opendatacommunities.org/id/metropolitan-district-council/wolverhampton","22/06/2017","Financial Services","Norfolk County Council","Services - Professional Fees","18,708.37","0.00","8299"
"Wolverhampton City Council","http://opendatacommunities.org/id/metropolitan-district-council/wolverhampton","27/04/2017","Governance","Pensions And Lifetime Savings Association","Conference Expenses","1,125.00","0.00","8299"
"Wolverhampton City Council","http://opendatacommunities.org/id/metropolitan-district-council/wolverhampton","10/04/2017","Investment - Revenue","Pinsent Masons","Services - Professional Fees","4,000.00","0.00","8111"
"Wolverhampton City Council","http://opendatacommunities.org/id/metropolitan-district-council/wolverhampton","10/04/2017","Investment - Revenue","Pinsent Masons","Services - Professional Fees","1,615.50","0.00","8111"
"Wolverhampton City Council","http://opendatacommunities.org/id/metropolitan-district-council/wolverhampton","28/04/2017","LAPFF","PIRC Ltd","Services - Professional Fees","38,578.80","0.00","8999"
"Wolverhampton City Council","http://opendatacommunities.org/id/metropolitan-district-council/wolverhampton","28/04/2017","LAPFF","PIRC Ltd","Services - Professional Fees","42,140.80","0.00","8999"
"Wolverhampton City Council","http://opendatacommunities.org/id/metropolitan-district-council/wolverhampton","28/04/2017","LAPFF","PIRC Ltd","Support Service Recharge - Legal Services","1,300.00","0.00","8999"
"Wolverhampton City Council","http://opendatacommunities.org/id/metropolitan-district-council/wolverhampton","03/06/2017","LAPFF","PIRC Ltd","Services - Professional Fees","7,961.20","0.00","8999"
"Wolverhampton City Council","http://opendatacommunities.org/id/metropolitan-district-council/wolverhampton","03/06/2017","Investment - Revenue","Portfolio Evalutaion Limited","Services - Professional Fees","6,560.00","0.00","8999"
"Wolverhampton City Council","http://opendatacommunities.org/id/metropolitan-district-council/wolverhampton","20/06/2017","Investment - Revenue","Portfolio Evalutaion Limited","Services - Professional Fees","7,350.00","0.00","8999"
"Wolverhampton City Council","http://opendatacommunities.org/id/metropolitan-district-council/wolverhampton","27/04/2017","Pension Operations","PR Academy","Training Expenses","550.00","0.00","8299"
"Wolverhampton City Council","http://opendatacommunities.org/id/metropolitan-district-council/wolverhampton","05/05/2017","Investments Fund Account","PRI ASSOCIAION LTD(GLOBAL COMPACT)","Subscriptions","8,190.00","0.00","8999"
"Wolverhampton City Council","http://opendatacommunities.org/id/metropolitan-district-council/wolverhampton","26/06/2017","LGPS Central","PRICE WATERHOUSE COOPERS","Services - Professional Fees","48,540.00","0.00","8931"
"Wolverhampton City Council","http://opendatacommunities.org/id/metropolitan-district-council/wolverhampton","04/05/2017","LGPS Central","PRICE WATERHOUSE COOPERS","Services - Professional Fees","71,332.00","0.00","8931"
"Wolverhampton City Council","http://opendatacommunities.org/id/metropolitan-district-council/wolverhampton","05/05/2017","LGPS Central","R D Summers","Services - Professional Fees","1,500.00","0.00","8999"
"Wolverhampton City Council","http://opendatacommunities.org/id/metropolitan-district-council/wolverhampton","03/06/2017","Governance","ROYAL MAIL GROUP PLC","Comms - Postage","551.67","0.00","9402"
"Wolverhampton City Council","http://opendatacommunities.org/id/metropolitan-district-council/wolverhampton","30/06/2017","Pension Operations","Seal & Send Ltd T/A Send Marketing Solutions","Comms - Postage","549.15","0.00","4215"
"Wolverhampton City Council","http://opendatacommunities.org/id/metropolitan-district-council/wolverhampton","04/07/2017","Governance","SGS UNITED KINGDOM LTD","Services - Professional Fees","1,550.00","0.00","8999"
"Wolverhampton City Council","http://opendatacommunities.org/id/metropolitan-district-council/wolverhampton","22/06/2017","Investment - Revenue","Shakespeare Martineau LLP","Services - Professional Fees","1,241.20","0.00","8111"
"Wolverhampton City Council","http://opendatacommunities.org/id/metropolitan-district-council/wolverhampton","22/06/2017","Investment - Revenue","Shakespeare Martineau LLP","Services - Professional Fees","1,283.00","0.00","8111"
"Wolverhampton City Council","http://opendatacommunities.org/id/metropolitan-district-council/wolverhampton","22/06/2017","Investment - Revenue","Shakespeare Martineau LLP","Services - Professional Fees","1,139.02","0.00","8111"
"Wolverhampton City Council","http://opendatacommunities.org/id/metropolitan-district-council/wolverhampton","22/06/2017","Investment - Revenue","Shakespeare Martineau LLP","Services - Professional Fees","18,434.50","0.00","8111"
"Wolverhampton City Council","http://opendatacommunities.org/id/metropolitan-district-council/wolverhampton","15/05/2017","Governance","SQUIRE,SANDERS & DEMPSEY (UK) LLP","Services - Professional Fees","500.00","0.00","8111"
"Wolverhampton City Council","http://opendatacommunities.org/id/metropolitan-district-council/wolverhampton","15/05/2017","Investment - Revenue","Tedmoor Consultancy Ltd","Investment Management Expenses","3,750.00","0.00","8999"
"Wolverhampton City Council","http://opendatacommunities.org/id/metropolitan-district-council/wolverhampton","28/04/2017","LAPFF","The Bray Partnership Management Consultants","Services - Professional Fees","1,774.48","0.00","7392"
"Wolverhampton City Council","http://opendatacommunities.org/id/metropolitan-district-council/wolverhampton","04/05/2017","LAPFF","The Bray Partnership Management Consultants","Services - Professional Fees","3,776.77","0.00","7392"
"Wolverhampton City Council","http://opendatacommunities.org/id/metropolitan-district-council/wolverhampton","15/05/2017","Executive","The Financial Times Limited","Subscriptions","572.00","0.00","5192"
"Wolverhampton City Council","http://opendatacommunities.org/id/metropolitan-district-council/wolverhampton","03/05/2017","Investment - Revenue","Trowers & Hamlins LLP","Services - Professional Fees","45,993.54","0.00","8111"
"Wolverhampton City Council","http://opendatacommunities.org/id/metropolitan-district-council/wolverhampton","03/05/2017","Investment - Revenue","Trowers & Hamlins LLP","Services - Professional Fees","652.00","0.00","8111"
"Wolverhampton City Council","http://opendatacommunities.org/id/metropolitan-district-council/wolverhampton","03/05/2017","Investment - Revenue","Trowers & Hamlins LLP","Services - Professional Fees","8,500.00","0.00","8111"
"Wolverhampton City Council","http://opendatacommunities.org/id/metropolitan-district-council/wolverhampton","03/05/2017","Investment - Revenue","Trowers & Hamlins LLP","Services - Professional Fees","2,900.00","0.00","8111"
"Wolverhampton City Council","http://opendatacommunities.org/id/metropolitan-district-council/wolverhampton","03/05/2017","Investment - Revenue","Trowers & Hamlins LLP","Services - Professional Fees","2,562.75","0.00","8111"
"Wolverhampton City Council","http://opendatacommunities.org/id/metropolitan-district-council/wolverhampton","03/05/2017","Investment - Revenue","Trowers & Hamlins LLP","Services - Professional Fees","3,700.00","0.00","8111"
"Wolverhampton City Council","http://opendatacommunities.org/id/metropolitan-district-council/wolverhampton","21/06/2017","Pension Operations","UK MAIL LTD/BUSINESSPOST INTERNATNL.","Comms - Postage","737.29","0.00","4215"
"Wolverhampton City Council","http://opendatacommunities.org/id/metropolitan-district-council/wolverhampton","21/06/2017","Pension Operations","UK MAIL LTD/BUSINESSPOST INTERNATNL.","Comms - Postage","711.77","0.00","4215"
"Wolverhampton City Council","http://opendatacommunities.org/id/metropolitan-district-council/wolverhampton","23/07/2017","Pension Operations","Warwick University Enterprises Ltd","Agency Staff","536.87","0.00","8220"
"Wolverhampton City Council","http://opendatacommunities.org/id/metropolitan-district-council/wolverhampton","12/06/2017","Pension Operations","Warwick University Enterprises Ltd","Agency Staff","2,869.36","0.00","8220"
"Wolverhampton City Council","http://opendatacommunities.org/id/metropolitan-district-council/wolverhampton","14/07/2017","Pension Operations","Warwick University Enterprises Ltd","Agency Staff","536.87","0.00","8220"
"Wolverhampton City Council","http://opendatacommunities.org/id/metropolitan-district-council/wolverhampton","02/06/2017","Governance","WaterCoolers Direct.com Ltd","Water Charges","1,895.00","0.00","7299"
"Wolverhampton City Council","http://opendatacommunities.org/id/metropolitan-district-council/wolverhampton","27/04/2017","Governance","West Midlands Pension Fund","Subscriptions","8,250.00","0.00","9405"
"Wolverhampton City Council","http://opendatacommunities.org/id/metropolitan-district-council/wolverhampton","12/07/2017","Pension Operations","Wolverhampton City Council","Training Expenses","2,600.00","0.00","9405"
"Wolverhampton City Council","http://opendatacommunities.org/id/metropolitan-district-council/wolverhampton","17/05/2017","Governance","Wolverhampton City Council","Printing","6,840.08","0.00","9405"
"Wolverhampton City Council","http://opendatacommunities.org/id/metropolitan-district-council/wolverhampton","21/06/2017","Governance","Wolverhampton City Council - Pension Recharge","Business Rates","7,744.00","0.00","9405"
"Wolverhampton City Council","http://opendatacommunities.org/id/metropolitan-district-council/wolverhampton","21/06/2017","Governance","Wolverhampton City Council - Pension Recharge","Business Rates","15,529.50","0.00","9405"
"Wolverhampton City Council","http://opendatacommunities.org/id/metropolitan-district-council/wolverhampton","21/06/2017","Governance","Wolverhampton City Council - Pension Recharge","Business Rates","4,893.00","0.00","9405"
"Wolverhampton City Council","http://opendatacommunities.org/id/metropolitan-district-council/wolverhampton","21/06/2017","Governance","Wolverhampton City Council - Pension Recharge","Business Rates","4,743.20","0.00","9405"
"Wolverhampton City Council","http://opendatacommunities.org/id/metropolitan-district-council/wolverhampton","21/06/2017","Governance","Wolverhampton City Council - Pension Recharge","Business Rates","4,704.00","0.00","9405"
"Wolverhampton City Council","http://opendatacommunities.org/id/metropolitan-district-council/wolverhampton","21/06/2017","Governance","Wolverhampton City Council - Pension Recharge","Business Rates","15,655.50","0.00","9405"
"Wolverhampton City Council","http://opendatacommunities.org/id/metropolitan-district-council/wolverhampton","21/06/2017","Governance","Wolverhampton City Council - Pension Recharge","Business Rates","15,727.50","0.00","9405"
"Wolverhampton City Council","http://opendatacommunities.org/id/metropolitan-district-council/wolverhampton","21/06/2017","Governance","Wolverhampton City Council - Pension Recharge","Business Rates","7,680.00","0.00","9405"
"Wolverhampton City Council","http://opendatacommunities.org/id/metropolitan-district-council/wolverhampton","21/06/2017","Governance","Wolverhampton City Council - Pension Recharge","Business Rates","23,540.75","0.00","9405"
"Wolverhampton City Council","http://opendatacommunities.org/id/metropolitan-district-council/wolverhampton","21/06/2017","Governance","Wolverhampton City Council - Pension Recharge","Business Rates","8,038.50","0.00","9405"
"Wolverhampton City Council","http://opendatacommunities.org/id/metropolitan-district-council/wolverhampton","21/06/2017","Governance","Wolverhampton City Council - Pension Recharge","Business Rates","23,731.75","0.00","9405"
"Wolverhampton City Council","http://opendatacommunities.org/id/metropolitan-district-council/wolverhampton","12/06/2017","Governance","Wolverhampton City Council - Pension Recharge","Business Rates","24,429.00","0.00","9405"
"Wolverhampton City Council","http://opendatacommunities.org/id/metropolitan-district-council/wolverhampton","18/07/2017","Pension Operations","Yoo","Agency Staff","2,467.80","0.00","7361"
"Wolverhampton City Council","http://opendatacommunities.org/id/metropolitan-district-council/wolverhampton","08/06/2017","Pension Operations","Yoo","Agency Staff","3,022.71","0.00","7361"
"Wolverhampton City Council","http://opendatacommunities.org/id/metropolitan-district-council/wolverhampton","05/05/2017","Pension Operations","Yoo","Agency Staff","3,374.84","0.00","7361"
"Wolverhampton City Council","http://opendatacommunities.org/id/metropolitan-district-council/wolverhampton","20/06/2017","Pension Operations","Yoo","Agency Staff","3,127.68","0.00","7361"
"Wolverhampton City Council","http://opendatacommunities.org/id/metropolitan-district-council/wolverhampton","13/06/2017","Pension Operations","Yoo","Agency Staff","2,708.56","0.00","7361"
"Wolverhampton City Council","http://opendatacommunities.org/id/metropolitan-district-council/wolverhampton","26/06/2017","Pension Operations","Yoo","Agency Staff","2,853.48","0.00","7361"
"Wolverhampton City Council","http://opendatacommunities.org/id/metropolitan-district-council/wolverhampton","10/07/2017","Pension Operations","Yoo","Agency Staff","2,421.72","0.00","7361"
"Wolverhampton City Council","http://opendatacommunities.org/id/metropolitan-district-council/wolverhampton","04/07/2017","Pension Operations","Yoo","Agency Staff","3,886.97","0.00","7361"
"Wolverhampton City Council","http://opendatacommunities.org/id/metropolitan-district-council/wolverhampton","15/05/2017","Pension Operations","Yoo","Agency Staff","2,126.16","0.00","7361"
"Wolverhampton City Council","http://opendatacommunities.org/id/metropolitan-district-council/wolverhampton","15/05/2017","Pension Operations","Yoo","Agency Staff","2,387.79","0.00","7361"
"Wolverhampton City Council","http://opendatacommunities.org/id/metropolitan-district-council/wolverhampton","15/05/2017","Pension Operations","Yoo","Agency Staff","2,152.15","0.00","7361"
"Wolverhampton City Council","http://opendatacommunities.org/id/metropolitan-district-council/wolverhampton","03/05/2017","Pension Operations","Yoo","Agency Staff","4,285.90","0.00","7361"
"Wolverhampton City Council","http://opendatacommunities.org/id/metropolitan-district-council/wolverhampton","26/05/2017","Pension Operations","Yoo","Agency Staff","2,945.72","0.00","7361"
"Wolverhampton City Council","http://opendatacommunities.org/id/metropolitan-district-council/wolverhampton","24/05/2017","Pension Operations","Yoo","Agency Staff","6,201.74","0.00","7361"
"Wolverhampton City Council","http://opendatacommunities.org/id/metropolitan-district-council/wolverhampton","11/05/2017","Pension Operations","Yoo","Agency Staff","4,430.58","0.00","7361"
"Wolverhampton City Council","http://opendatacommunities.org/id/metropolitan-district-council/wolverhampton","27/04/2017","Pension Operations","Yoo","Agency Staff","4,068.62","0.00","7361"
